[Event "Cairns Cup 2024"]
[Site "Saint Louis"]
[Date "2024.06.17"]
[Round "5.1"]
[White "Lee, Alice"]
[Black "Dzagnidze, Nana"]
[Result "1/2-1/2"]
[ECO "E04"]
[WhiteElo "2368"]
[BlackElo "2506"]
[Annotator "TA"]
[PlyCount "174"]
[EventDate "2024.06.13"]
[EventType "tourn"]
[EventCountry "USA"]
[SourceTitle "playchess.com"]
[Source "ChessBase"]
[SourceQuality "1"]
[TimeControl "40/5400+30:1800+30"]

{[%evp 11,173,20,28,19,27,33,22,26,33,36,43,-38,-41,-39,-43,-44,-31,-67,-64,-55,-86,-72,-68,-72,-64,-163,-137,-177,-49,-61,-57,-83,-60,-79,-79,-114,-112,-105,-88,-78,-77,-77,-77,-80,-74,-101,-101,-105,-98,-106,-102,-108,-133,-104,-103,-107,-105,-102,-103,-109,-110,-95,-81,-93,-79,-107,-51,-58,-58,-58,-58,-58,-58,-58,-25,-61,-58,-73,-56,-75,-51,-75,-40,-58,0,-75,-75,-75,-75,-75,-58,-58,-58,-58,-58,-58,-40,-36,-19,-25,-21,-35,-27,-28,-27,-29,-26,-49,-41,-50,-45,-114,-114,-114,-114,-114,-114,-114,-114,-119,-125,-177,-177,-170,-170,-185,-185,-388,-366,-356,-388,-368,-376,-360,-420,-500,-491,-484,-484,-484,-435,-308,-308,-437,-193,-29974,-29975,-29975,-29976,-29976,-29976,-29978,-29975,-29977,-8,-29975,-29975,-29986,-8,-8,-8,-8,-8,-8]} 1. d4 {[%emt 0:00:00]} Nf6 {[%emt 0:00:00]} 2. c4 {[%emt 0:00:00]} e6 {[%emt 0:00:00]} 3. Nf3 {[%emt 0:00:00]} d5 {[%emt 0:00:00]} 4. g3 {[%emt 0:00:00]} dxc4 {[%emt 0:00:00]} 5. Bg2 {[%emt 0:00:00]} c6 {[%emt 0:00:00]} 6. Ne5 {[%emt 0:00:00]} Bb4+ {[%emt 0:00:00]} 7. Bd2 {[%emt 0:00:00]} Be7 {[%emt 0:00:00]} 8. e3 {[%emt 0:00:00][%cal Oe1g1]} O-O {[%emt 0:00:00]} 9. Nxc4 {[%emt 0:00:00]} b6 {[%emt 0:00:00]} 10. O-O {[%emt 0:00:00]} Bb7 {[%emt 0:00:00]} 11. Qb3 {[%emt 0:00:00]} ({White should play} 11. b4 $14) 11... Qc8 $15 {[%emt 0:00:00]} 12. e4 {[%emt 0:01:24]} c5 {[%emt 0:00:00]} 13. dxc5 {[%emt 0:10:25]} Nxe4 {[%emt 0:00:00]} 14. cxb6 {[%emt 0:05:29]} Nc5 $1 {[%emt 0:00:10]} 15. Qe3 {[%emt 0:12:50]} Bxg2 {[%emt 0:00:26]} 16. Kxg2 {[%emt 0:00:11]} axb6 {[%emt 0:00:33]} 17. Qf3 {[%emt 0:02:43]} Nbd7 {[%emt 0:05:04]} 18. Bf4 {[%emt 0:17:53]} (18. Nba3 $15) 18... b5 $19 {[%emt 0:08:56]} 19. Ne5 {[%emt 0:02:08]} Bf6 {[%emt 0:00:47]} (19... Nxe5 $19 20. Bxe5 Rd8) 20. Nxd7 $1 $15 {[%emt 0:04:32]} Qxd7 {[%emt 0:00:16]} 21. Nc3 {[%emt 0:06:16]} Nd3 {[%emt 0:13:19]} 22. Rad1 {[%emt 0:03:29]} Nxf4+ {[%emt 0:02:08]} 23. gxf4 {[%emt 0:00:07]} Qe7 {[%emt 0:02:01]} 24. Nxb5 {[%emt 0:06:40]} Rxa2 {[%emt 0:06:42]} 25. b3 {[%emt 0:00:51]} g6 {[%emt 0:07:32]} 26. Nd6 {[%emt 0:06:11] Wards off Rc8} Rb8 {[%emt 0:01:14]} 27. Rd3 {[%emt 0:05:46]} Bh4 {[%emt 0:04:24]} 28. Nc4 {[%emt 0:03:06]} h5 {[%emt 0:05:42]} 29. Ne5 {[%emt 0:01:17]} Rb7 $1 {[%emt 0:07:10]} 30. Nc6 {[%emt 0:03:13]} Qc5 {[%emt 0:01:42][%cal Oh4f2]} 31. Rc3 {[%emt 0:01:09]} Qb6 {[%emt 0:01:25]} 32. Ne5 {[%emt 0:02:56] Repels Rd7} Kg7 {[%emt 0:02:14]} 33. Nc4 {[%emt 0:00:29]} Qb4 {[%emt 0:00:22]} 34. Rd3 {[%emt 0:01:24]} Rc7 {[%emt 0:00:16]} 35. Qe4 {[%emt 0:01:55] Qe5+ would now be deadly.} Qe7 {[%emt 0:04:01]} 36. Qe5+ {[%emt 0:01:20]} Bf6 {[%emt 0:01:45]} 37. Qd6 {[%emt 0:00:26]} Rb7 {[%emt 0:01:11]} 38. Qc6 {[%emt 0:00:28]} Rc2 {[%emt 0:00:56]} ({Black should try} 38... Bh4 $17 39. Qe4 Rc7) 39. Rfd1 {[%emt 0:01:12]} Rc7 {[%emt 0:08:39]} 40. Qd6 {[%emt 0:00:13]} Qxd6 {[%emt 0:04:45]} 41. Nxd6 {[%emt 0:30:02]} Kf8 {[%emt 0:30:15] Dodges Ne8} 42. R1d2 {[%emt 0:01:45]} Rc1 {[%emt 0:05:41]} 43. Nc4 {[%emt 0:01:33]} Rb7 {[%emt 0:00:27]} 44. Ra2 {[%emt 0:00:49]} Be7 {[%emt 0:02:07]} 45. Re2 {[%emt 0:02:00]} Rb1 {[%emt 0:01:01]} 46. Rb2 {[%emt 0:00:18]} Re1 {[%emt 0:00:46]} 47. Ra2 {[%emt 0:00:45]} Rb1 {[%emt 0:01:46]} 48. Rb2 $1 {[%emt 0:00:02]} Ra1 {[%emt 0:00:13]} 49. Rc2 {[%emt 0:00:44]} Kg7 {[%emt 0:00:24]} 50. Rcd2 {[%emt 0:00:39]} Kf6 {[%emt 0:01:09]} 51. Rd7 {[%emt 0:00:40]} Raa7 {[%emt 0:04:04]} (51... Rxb3 52. Rc7 Rb5 53. Rdd7 $18) 52. Rxb7 {[%emt 0:00:01]} Rxb7 {[%emt 0:00:04][%mdl 4096] Endgame. KRB-KRN} 53. Rd3 {[%emt 0:00:01]} Bc5 {[%emt 0:00:32]} 54. Kf3 {[%emt 0:00:27]} g5 {[%emt 0:01:20]} 55. fxg5+ {[%emt 0:00:48]} Kxg5 {[%emt 0:00:03]} 56. Kg3 {[%emt 0:00:49]} f6 {[%emt 0:00:16]} 57. Nd2 {[%emt 0:00:14]} Rb4 {[%emt 0:00:12] Against Ne4+} 58. Nc4 {[%emt 0:00:41]} e5 {[%emt 0:00:45]} 59. f4+ {[%emt 0:00:39]} exf4+ {[%emt 0:00:29]} 60. Kf3 {[%emt 0:00:01]} Bg1 {[%emt 0:00:49]} 61. Kg2 {[%emt 0:00:54]} (61. h3 $15) 61... Ba7 $17 {[%emt 0:00:23]} 62. Kf3 {[%emt 0:00:14]} Bb8 $1 {[%emt 0:00:27]} 63. Nd2 {[%emt 0:00:22]} Be5 {[%emt 0:00:27]} 64. Rd8 {[%emt 0:00:46]} Rb7 {[%emt 0:00:49]} 65. Rg8+ {[%emt 0:00:02]} Kf5 {[%emt 0:00:07]} 66. Rh8 {[%emt 0:00:32]} (66. Rd8 $17) 66... Rd7 $1 $19 {[%emt 0:00:03]} 67. Ke2 {[%emt 0:00:01]} Bc3 $1 {[%emt 0:00:36]} 68. Nc4 {[%emt 0:01:42]} Kg4 {[%emt 0:01:47] Strongly threatening ...f3+.} 69. h3+ $2 {[%emt 0:00:51]} (69. Rg8+ Kh3 70. Kf3) 69... Kg3 {[%emt 0:00:22] White must now prevent ...f3+.} (69... Kxh3 70. Kf3 h4 71. Kxf4 $19) 70. Rg8+ {[%emt 0:00:24]} Kxh3 {[%emt 0:00:03]} 71. Kf3 {[%emt 0:00:01]} Be5 {[%emt 0:00:14]} 72. Ke2 {[%emt 0:00:58] Dodges Rd3} h4 {[%emt 0:02:33]} 73. Nd2 {[%emt 0:00:11]} Bd4 {[%emt 0:00:06] aiming for ...Re7+.} 74. Nf3 {[%emt 0:00:57]} Re7+ {[%emt 0:01:07]} 75. Kf1 {[%emt 0:00:01]} Ba7 {[%emt 0:00:58]} 76. Rg6 {[%emt 0:00:46]} Rb7 {[%emt 0:01:20]} 77. Rxf6 {[%emt 0:00:08]} (77. Ng1+ {was the only chance.} Bxg1 78. Kxg1) 77... Rxb3 {[%emt 0:00:33]} ({Less strong is} 77... Kg3 78. Nxh4 Rxb3 (78... Kxh4 79. Rxf4+ Kg3 80. Rf8 $17) 79. Ke2 $17) (77... Be3 $142 78. Rg6 Rxb3) 78. Rxf4 $2 {[%emt 0:00:06]} (78. Nxh4 $19 Bb8 (78... Kxh4 79. Rxf4+ Kg5 80. Ra4 $15) 79. Nf5) 78... Kg3 $1 {[%emt 0:00:11][%csl LRf3,LRf4]} 79. Nd2 {[%emt 0:00:30]} Kxf4 {[%emt 0:01:10]} 80. Nxb3 {[%emt 0:00:02] KB-KN} h3 {[%emt 0:00:08]} 81. Nd2 {[%emt 0:01:52]} Bd4 {[%emt 0:00:00]} 82. Nc4 {[%emt 0:00:31] [#]} Kg3 $2 {[%emt 0:01:04]} (82... Bc5 $1 83. Nd6 Be3 (83... Bxd6 $2 84. Kg1 $19) 84. Nf7 Kg4 85. Ne5+ Kg3 86. Ke2 h2 87. Kxe3 h1=Q (87... h1=R 88. Nf3 $11) 88. Kd4 Kf4 89. Nd3+ Kf5 90. Nc5 Qc6 91. Nd3 Qe4+ 92. Kc3 Qd5 93. Nc1 Qc6+ 94. Kd2 Ke4 95. Ne2 Qd5+ 96. Kc3 Qd3+ 97. Kb4 Qxe2 98. Kc5 Qa6 99. Kb4 Qc6 100. Ka5 Kd3 101. Kb4 Qb6+ 102. Ka4 Kc4 103. Ka3 Qb3#) 83. Nd6 $2 {[%emt 0:00:19][%mdl 8192] [#]} (83. Nd2 $11) 83... Kf3 $1 {[%emt 0:00:44]} 84. Nf5 {[%emt 0:00:37]} Bf2 $2 {[%emt 0:00:15]} (84... Bb6 {mates} 85. Nh4+ Kf4 86. Ng6+ Kg3 87. Ne7 h2 88. Nf5+ Kh3 89. Ne7 h1=Q+ (89... h1=B $2 90. Nf5 $19) 90. Ke2 Qe4+ 91. Kd2 Qxe7 92. Kc3 Qe4 93. Kb3 Qd3+ 94. Kb4 Kg3 95. Ka4 Qb1 96. Ka3 Bc5+ 97. Ka4 Qb4#) 85. Nh4+ $1 $11 {[%emt 0:00:04] The position is equal.} Bxh4 {[%emt 0:00:47]} 86. Kg1 {[%emt 0:00:03]} Kg3 {[%emt 0:00:20]} 87. Kh1 {[%emt 0:00:03]} h2 {[%emt 0:00:04] Weighted Error Value: White=0.11 (very precise) /Black=0.10 (very precise) .  Mistake:       	White=7     	Black=3      Inaccurate:     	White=6     	Black=2      OK:         	White=23    	Black=34     Best:        	White=7     	Black=4      Strong:       	White=2     	Black=5} 1/2-1/2

[Event "Cairns Cup 2024"]
[Site "Saint Louis"]
[Date "2024.06.17"]
[Round "5.2"]
[White "Krush, Irina"]
[Black "Kosteniuk, Alexandra"]
[Result "1/2-1/2"]
[ECO "E49"]
[WhiteElo "2415"]
[BlackElo "2501"]
[Annotator "TA"]
[PlyCount "96"]
[EventDate "2024.06.13"]
[EventType "tourn"]
[EventCountry "USA"]
[SourceTitle "playchess.com"]
[Source "ChessBase"]
[SourceQuality "1"]
[TimeControl "40/5400+30:1800+30"]

{[%evp 18,96,0,-26,-16,-6,0,-10,-16,-9,-10,-19,-7,-10,0,0,0,-9,-9,-31,-26,-26,-24,-32,-35,-30,-35,-36,-31,0,0,0,0,0,0,0,0,0,92,98,81,80,90,85,85,50,54,51,75,87,110,114,108,99,104,116,114,99,290,306,291,265,270,290,283,245,233,19,16,0,0,0,0,0,0,0,0,0,0,0,0]} 1. d4 {[%emt 0:00:00]} Nf6 {[%emt 0:00:00]} 2. c4 {[%emt 0:00:00]} e6 {[%emt 0:00:00]} 3. Nc3 {[%emt 0:00:00]} Bb4 {[%emt 0:00:00]} 4. e3 {[%emt 0:00:00]} O-O {[%emt 0:00:00]} 5. Bd3 {[%emt 0:00:00]} d5 {[%emt 0:00:00]} 6. a3 {[%emt 0:00:00]} Bxc3+ {[%emt 0:00:00]} 7. bxc3 {[%emt 0:00:00]} dxc4 {[%emt 0:00:00]} 8. Bxc4 {[%emt 0:00:00]} c5 {[%emt 0:00:00]} 9. Ne2 {[%emt 0:00:00][%cal Bg1e2,Be2d4,Bd4b5][%mdl 32]} Qc7 {[%emt 0:00:00]} 10. Ba2 {[%emt 0:00:00]} b6 {[%emt 0:00:00]} 11. Bb2 {[%emt 0:00:00]} Ba6 {[%emt 0:00:00]} 12. c4 {[%emt 0:00:00]} cxd4 {[%emt 0:00:00]} 13. Nxd4 {[%emt 0:00:00]} Nc6 {[%emt 0:00:00]} 14. Nb5 {[%emt 0:00:00]} Qe7 {[%emt 0:00:00]} 15. O-O {[%emt 0:00:00]} Rac8 {[%emt 0:00:00]} 16. Qe2 {[%emt 0:00:00]} Bb7 {[%emt 0:03:51]} 17. a4 {[%emt 0:03:48] Hoping for Ba3.} Ne4 {[%emt 0:02:35]} 18. Qg4 {[%emt 0:01:19][%csl Gb2][%cal Rg4g7]} f5 {[%emt 0:02:09]} 19. Qe2 {[%emt 0:00:09]} Nc5 {[%emt 0:05:09]} 20. Bb1 {[%emt 0:03:57]} Rfd8 {[%emt 0:07:02]} 21. Bc2 {[%emt 0:01:35] Repels Nb3} Nb4 {[%emt 0:05:57] Excellent horsemanship.} 22. f3 {[%emt 0:04:57]} Nxc2 {[%emt 0:04:46]} 23. Qxc2 {[%emt 0:00:05]} a6 {[%emt 0:14:49]} 24. Nd4 {[%emt 0:01:14]} Nd7 {[%emt 0:00:08]} 25. Qb3 {[%emt 0:06:37]} Qf7 {[%emt 0:01:55]} 26. Rfd1 {[%emt 0:14:10]} e5 {[%emt 0:01:47][%csl LRc4,LRd4]} 27. Ne2 {[%emt 0:00:13]} Rxc4 {[%emt 0:09:15] [#]} (27... Qxc4 $6 28. Qxc4+ Rxc4 29. Bxe5 $16) (27... Qg6 $11 {remains equal.} 28. Ng3 Nc5 29. Rxd8+ Rxd8) 28. Qxb6 $1 $16 {[%emt 0:12:06]} Rb8 {[%emt 0:13:38]} 29. Qd6 {[%emt 0:04:37][%csl LRd7,LRe5]} Bc6 {[%emt 0:02:38]} ({Avoid the trap} 29... Bxf3 $2 30. Qxb8+ Nxb8 31. Rd8+ $18 (31. gxf3 $2 Qh5 $19) (31. gxf3 $2 Qh5 $19)) 30. Bxe5 {[%emt 0:02:01]} Rc8 {[%emt 0:02:32][%cal Od7e5]} 31. Bf4 {[%emt 0:06:09]} Bxa4 {[%emt 0:01:13]} 32. Rd2 {[%emt 0:08:53]} (32. Rxa4 Rxa4 33. Qxd7 Qxd7 34. Rxd7 Ra2 $15) 32... Bb5 {[%emt 0:04:59]} 33. Nd4 $36 {[%emt 0:00:17][%mdl 2048] Strongly threatening Nxb5. White is in control.} Rc1+ {[%emt 0:04:45]} 34. Rxc1 {[%emt 0:03:42]} Rxc1+ {[%emt 0:00:04]} 35. Kf2 {[%emt 0:00:06] And now Nxb5 would win.} Nf8 {[%emt 0:06:30]} 36. Nxb5 {[%emt 0:04:34]} axb5 {[%emt 0:00:01]} 37. Qb8 {[%emt 0:00:14][%cal Of4d6] Bd6! would now be deadly.} Qc4 $2 {[%emt 0:02:24]} (37... Qf6 $16 {was necessary.}) 38. Rd8 $18 {[%emt 0:06:01][%csl Gb8][%cal Rd8f8] Active counter play!} Rc2+ {[%emt 0:03:03]} 39. Kg3 {[%emt 0:00:59][%csl Gb8][%cal Rd8f8]} Qf7 {[%emt 0:00:22]} 40. h4 {[%emt 0:03:17]} h6 {[%emt 0:05:57]} 41. Kh3 {[%emt 0:31:13][%cal Of4d6] Threatening mate with Bd6!} (41. Qxb5 $2 {perishes.} Qg6+ $19) 41... Rc1 {[%emt 0:30:04][%cal Og7g5] [#]} 42. Bd6 $2 {[%emt 0:17:31]} (42. Qxb5 Rh1+ 43. Kg3 (43. Bh2 $2 Rxh2+ 44. Kxh2 Qc7+ 45. Kh3 Qxd8 $17) 43... Qf6 44. Rxf8+ Kxf8 $19) ({Only move:} 42. Qd6 $1 $18) 42... Rh1+ $11 {[%emt 0:00:10] The position is equal.} 43. Kg3 {[%emt 0:00:02][%cal Rd8f8]} f4+ $1 {[%emt 0:00:08]} 44. exf4 {[%emt 0:01:36][%cal Rd8f8]} Qg6+ {[%emt 0:00:06]} 45. Kf2 {[%emt 0:00:05]} Qc2+ {[%emt 0:00:02]} 46. Kg3 {[%emt 0:00:15]} Qg6+ {[%emt 0:00:03]} 47. Kf2 {[%emt 0:00:08]} Qc2+ {[%emt 0:00:02]} 48. Kg3 {[%emt 0:00:09]} Qg6+ {[%emt 0:00:10] White really could win this.   Weighted Error Value: White=0.13 (very precise) /Black=0.12 (very precise) .  Loses game:     	---       	Black=1      Missed win:     	White=1     	---        Mistake:       	---       	Black=1      Inaccurate:     	White=1     	---        OK:         	White=18    	Black=17     Best:        	White=5     	Black=5      Strong:       	---       	Black=1      Brilliant:      	White=1     	---} 1/2-1/2

[Event "Cairns Cup 2024"]
[Site "Saint Louis"]
[Date "2024.06.17"]
[Round "5.3"]
[White "Muzychuk, Anna"]
[Black "Tan, Zhongyi"]
[Result "1/2-1/2"]
[ECO "B12"]
[WhiteElo "2505"]
[BlackElo "2540"]
[Annotator "TA"]
[PlyCount "86"]
[EventDate "2024.06.13"]
[EventType "tourn"]
[EventCountry "USA"]
[SourceTitle "playchess.com"]
[Source "ChessBase"]
[SourceQuality "1"]
[TimeControl "40/5400+30:1800+30"]

{[%evp 10,86,14,0,0,6,0,0,0,0,0,0,0,0,21,15,25,23,18,7,15,12,46,33,72,81,86,68,92,71,125,117,108,106,109,99,108,108,101,101,101,108,107,105,97,98,108,96,94,95,88,87,90,89,83,28,36,35,43,37,43,0,0,0,0,0,0,0,8,0,0,0,0,0,0,0,0,0,0]} 1. e4 {[%emt 0:00:00]} c6 {[%emt 0:00:00]} 2. d4 {[%emt 0:00:00]} d5 {[%emt 0:00:00]} 3. e5 {[%emt 0:00:00]} Bf5 {[%emt 0:00:00]} 4. c4 {[%emt 0:00:00]} e6 {[%emt 0:00:00]} 5. Nc3 {[%emt 0:00:00]} Ne7 {[%emt 0:00:00]} 6. a3 {[%emt 0:00:00]} Nd7 {[%emt 0:00:00]} 7. cxd5 {[%emt 0:00:00]} Nxd5 {[%emt 0:00:00]} 8. Nxd5 {[%emt 0:00:00]} cxd5 {[%emt 0:00:00]} 9. Bd3 {[%emt 0:00:00]} Bxd3 {[%emt 0:00:00]} 10. Qxd3 {[%emt 0:00:00]} Rc8 {[%emt 0:00:00]} 11. Ne2 {[%emt 0:00:00]} Qa5+ {[%emt 0:00:00]} 12. Bd2 {[%emt 0:00:00]} Qa6 {[%emt 0:00:00]} 13. Qxa6 {[%emt 0:00:00]} bxa6 {[%emt 0:00:00]} 14. Rc1 {[%emt 0:00:00]} Rxc1+ {[%emt 0:00:00]} 15. Nxc1 {[%emt 0:00:00]} f6 {[%emt 0:00:00]} 16. Nd3 {[%emt 0:00:00]} fxe5 {[%emt 0:00:00]} 17. dxe5 {[%emt 0:00:00]} Nb6 {[%emt 0:00:00]} 18. Bb4 {[%emt 0:06:54]} Nc4 {[%emt 0:00:00]} 19. Ke2 {[%emt 0:11:36]} Kd7 {[%emt 0:00:00]} (19... Kf7 $142) 20. b3 {[%emt 0:07:21][%cal Bb2b3,Bb3b4][%mdl 32]} Nxa3 {[%emt 0:00:00]} 21. Bxa3 {[%emt 0:17:32]} Bxa3 $16 {[%emt 0:00:00][%mdl 4096] Endgame. KRB-KRN} 22. Ra1 {[%emt 0:00:05]} Be7 {[%emt 0:00:00]} 23. Rxa6 {[%emt 0:00:06]} Rb8 {[%emt 0:00:00]} 24. Rxa7+ {[%emt 0:00:09]} Ke8 {[%emt 0:00:00] [#]} 25. b4 $1 {[%emt 0:00:33][%mdl 512]} g5 {[%emt 0:00:00]} 26. f3 {[%emt 0:22:08]} h5 {[%emt 0:04:20]} 27. Ra2 {[%emt 0:05:33] White is more active.} Kd7 {[%emt 0:01:20]} (27... Bxb4 $2 {too greedy.} 28. Rb2 $18) 28. g3 {[%emt 0:03:56]} Rb6 {[%emt 0:01:19]} (28... Bxb4 $2 {is the wrong capture.} 29. Rb2 Bd6 30. exd6 $18) 29. Ra8 {[%emt 0:04:23]} Bxb4 {[%emt 0:01:57]} 30. Rh8 {[%emt 0:00:28]} Be7 {[%emt 0:01:07]} 31. Rxh5 {[%emt 0:00:21]} Ra6 {[%emt 0:00:07] [#]} 32. Rh7 {[%emt 0:03:08]} (32. f4 $1 $16 {[%cal Rf4g5]} Ra2+ 33. Ke3 gxf4+ 34. gxf4 (34. Kxf4 Ra3 $11)) 32... Ra2+ $11 {[%emt 0:05:12]} 33. Ke3 {[%emt 0:00:02] Hoping for Nc5+.} Ke8 {[%emt 0:00:08]} 34. f4 {[%emt 0:13:20]} Ra3 {[%emt 0:08:27]} 35. h4 {[%emt 0:07:26]} gxf4+ {[%emt 0:00:42] The position is equal.} 36. gxf4 {[%emt 0:00:02]} Bc5+ {[%emt 0:00:25]} 37. Kd2 {[%emt 0:00:01]} Ra2+ {[%emt 0:00:28]} 38. Kc3 {[%emt 0:00:10]} Be3 {[%emt 0:01:26]} 39. h5 {[%emt 0:01:53]} Ra3+ {[%emt 0:03:43]} 40. Kc2 {[%emt 0:00:06]} Ra2+ {[%emt 0:01:29]} 41. Kc3 {[%emt 0:30:05]} Ra3+ {[%emt 0:30:03]} 42. Kc2 {[%emt 0:00:05]} Ra2+ {[%emt 0:00:04]} 43. Kc3 {[%emt 0:00:04]} Ra3+ {[%emt 0:00:13] Weighted Error Value: White=0.05 (flawless) /Black=0.06 (flawless) .  Mistake:       	White=1     	Black=1      Inaccurate:     	White=1     	Black=2      OK:         	White=14    	Black=16     Best:        	White=5     	Black=4} 1/2-1/2

[Event "Cairns Cup 2024"]
[Site "Saint Louis"]
[Date "2024.06.17"]
[Round "5.4"]
[White "Muzychuk, Mariya"]
[Black "Dronavalli, Harika"]
[Result "1/2-1/2"]
[ECO "C54"]
[WhiteElo "2510"]
[BlackElo "2489"]
[Annotator "TA"]
[PlyCount "99"]
[EventDate "2024.06.13"]
[EventType "tourn"]
[EventCountry "USA"]
[SourceTitle "playchess.com"]
[Source "ChessBase"]
[SourceQuality "1"]
[TimeControl "40/5400+30:1800+30"]

{[%evp 24,99,12,0,0,0,2,0,0,0,19,7,17,0,22,0,0,0,0,0,0,4,5,8,41,37,59,60,119,120,126,120,122,117,120,114,133,133,126,128,125,127,135,130,131,116,116,101,114,110,139,82,83,79,89,86,88,66,60,61,68,59,67,9,11,12,9,0,0,0,0,0,0,0,0,0,0,0]} 1. e4 {[%emt 0:00:00]} e5 {[%emt 0:00:00]} 2. Nf3 {[%emt 0:00:00]} Nc6 {[%emt 0:00:00]} 3. Bc4 {[%emt 0:00:00]} Bc5 {[%emt 0:00:00]} 4. O-O {[%emt 0:00:00]} Nf6 {[%emt 0:00:00]} 5. d3 {[%emt 0:00:00]} d6 {[%emt 0:00:00]} 6. c3 {[%emt 0:00:00]} a6 {[%emt 0:00:00]} 7. a4 {[%emt 0:00:00]} h6 {[%emt 0:00:00]} 8. Re1 {[%emt 0:00:00] C54: Giuoco Piano: 4 c3 Nf6, main lines with 5 d4 and 5 d3.} O-O {[%emt 0:00:00]} 9. h3 $1 {[%emt 0:00:00] The main line 9.h3 scores better than 9.Nbd2.} Ba7 {[%emt 0:00:00]} 10. Nbd2 {[%emt 0:00:00]} Ne7 {[%emt 0:00:00]} 11. Nf1 {[%emt 0:00:00]} Ng6 {[%emt 0:00:00]} 12. Ng3 {[%emt 0:00:00]} c6 {[%emt 0:00:00]} 13. Bb3 {[%emt 0:01:49]} d5 {[%emt 0:00:00]} 14. exd5 {[%emt 0:10:40]} Nxd5 {[%emt 0:00:00]} 15. d4 {[%emt 0:00:13]} ({Much worse is} 15. Nxe5 Nxe5 16. Rxe5 Bxf2+ 17. Kxf2 Qf6+ 18. Qf3 Qxe5 $17) 15... exd4 {[%emt 0:00:00]} 16. Nxd4 {[%emt 0:00:12]} Be6 {[%emt 0:00:00]} 17. Bc2 {[%emt 0:11:21]} Bd7 {[%emt 0:00:00]} 18. Be4 $146 {[%emt 0:04:59]} (18. Qd3 {seems wilder.} Qc7 19. Nh5 Rae8 20. Bd2) ({Predecessor:} 18. Bb3 Qa5 19. Bxd5 Qxd5 20. Ndf5 Qxd1 21. Rxd1 Bxf5 22. Nxf5 Rfd8 23. Be3 Bxe3 24. Nxe3 {½-½ Grischuk,A (2778)-Korobov,A (2683) FIDE World Cup 2021 (4.2)}) 18... Nf6 {[%emt 0:23:25]} 19. Bf5 {[%emt 0:06:15]} Bxd4 {[%emt 0:04:35]} 20. Qxd4 {[%emt 0:00:42]} Bxf5 {[%emt 0:00:08]} 21. Nxf5 {[%emt 0:02:16]} Qxd4 {[%emt 0:00:21]} 22. Nxd4 {[%emt 0:00:29]} Rfd8 {[%emt 0:04:23]} 23. Nb3 {[%emt 0:04:42]} Nd5 {[%emt 0:03:47]} 24. a5 {[%emt 0:12:25]} Nf8 {[%emt 0:03:26]} 25. Nc5 {[%emt 0:03:13]} Ne6 {[%emt 0:08:37]} (25... Re8 $14 26. Bd2 Rxe1+ 27. Bxe1 Ne6 28. Nxe6 (28. Nxb7 Rb8 $11) 28... fxe6) 26. Nxe6 $16 {[%emt 0:03:06]} fxe6 {[%emt 0:03:01]} 27. Rxe6 {[%emt 0:00:32]} Kf7 {[%emt 0:01:54]} 28. Re1 {[%emt 0:01:10]} Rd7 {[%emt 0:00:33]} 29. Ra4 {[%emt 0:04:52]} Rad8 {[%emt 0:00:32]} 30. Rd4 {[%emt 0:01:34]} Nc7 {[%emt 0:04:38]} 31. Rf4+ {[%emt 0:13:39]} Kg8 {[%emt 0:00:03]} 32. Rfe4 {[%emt 0:00:13]} Nd5 {[%emt 0:00:46]} 33. Kf1 {[%emt 0:03:53]} Nf6 {[%emt 0:00:48]} 34. Rb4 {[%emt 0:05:11]} Rf7 {[%emt 0:03:02]} 35. c4 {[%emt 0:03:03]} Rd4 {[%emt 0:05:15]} 36. Be3 {[%emt 0:00:40]} Rh4 {[%emt 0:00:26] [#]} 37. b3 {[%emt 0:03:10]} ({Better is} 37. Ra4 $1) 37... Nd5 $16 {[%emt 0:06:16]} 38. Ra4 {[%emt 0:00:17]} (38. cxd5 $2 {loses.} Rxb4 39. Bc5 Rxb3 40. dxc6 bxc6 41. Re8+ Kh7 $19) 38... Nxe3+ {[%emt 0:00:33]} 39. Rxe3 {[%emt 0:00:03]} Rd4 {[%emt 0:00:05]} 40. Ke2 {[%emt 0:01:27]} Rfd7 {[%emt 0:00:04]} 41. Ra2 {[%emt 0:30:17]} Kf7 {[%emt 0:30:39]} 42. Rc2 {[%emt 0:03:18]} Rd1 {[%emt 0:00:35]} 43. c5 {[%emt 0:00:46]} (43. Rb2 $14) 43... Ra1 $11 {[%emt 0:01:38]} 44. b4 {[%emt 0:00:04]} Rd4 {[%emt 0:00:20]} 45. Rd2 {[%emt 0:03:18]} Rxb4 {[%emt 0:05:46]} 46. Rd7+ {[%emt 0:00:03]} Kf6 {[%emt 0:03:03]} 47. Rd6+ {[%emt 0:00:42]} Kf7 {[%emt 0:00:10]} 48. Rd7+ {[%emt 0:00:10]} Kf6 {[%emt 0:00:02]} 49. Rd6+ {[%emt 0:00:03]} Kf7 {[%emt 0:00:03]} 50. Rd7+ {[%emt 0:01:04]} 1/2-1/2